bitfinex-derivatives/quotes_BNBF0:USTF0_20250425
["timestamp","ask_amount","ask_price","bid_price","bid_amount"]
[1745597555332,1.24825787,606.06,604.06,5.543]
[1745597555533,1.24825787,606.12,604.06,5.543]
[1745597555832,0.28774004,606.04,604.06,5.83074004]
[1745597556031,1.24825787,606.12,604.06,5.83074004]
[1745597556734,0.28770674,606.11,604.06,5.83074004]
[1745597564237,1.24825787,606.39,604.06,5.543]
[1745597564638,0.28769841,606.38,604.06,5.83069841]
[1745597566134,1.24825787,606.34,604.06,5.83069841]
[1745597567337,1.24825787,606.34,604.06,5.543]
[1745597567638,0.28768771,606.33,604.06,5.83068771]
[1745597568939,1.24825787,606.32,604.06,5.83068771]
[1745597571641,1.24825787,606.26,604.06,5.83068771]
[1745597571840,1.24825787,606.26,604.07,0.30370757]
[1745597573539,0.28768771,606.25,604.07,0.30370757]
[1745597573838,0.28768771,606.25,604.06,3.16068771]
[1745597574639,1.24825787,606.17,604.06,3.16068771]
[1745597575035,1.24825787,606.17,604.06,4.11868771]
[1745597575239,1.24825787,606.17,604.07,0.30371203]
[1745597575641,1.24825787,606.17,604.06,4.11868771]
[1745597576336,1.24825787,606.17,604.06,3.831]
[1745597576741,0.28769841,606.16,604.06,4.11869841]
[1745597576939,1.24825787,606.12,604.06,5.57569841]
[1745597579135,0.28769841,606.16,604.06,5.57569841]
[1745597579341,1.24825787,606.23,604.06,5.288]
[1745597579641,0.28769128,606.15,604.06,5.57569128]
[1745597579940,1.24825787,606.23,604.06,5.57569128]
[1745597580642,0.28769128,606.22,604.06,5.57569128]
[1745597588342,1.24825787,606.24,604.06,5.288]
[1745597588547,0.28771863,606.21,604.06,5.288]
[1745597588747,0.28771863,606.21,604.06,5.57571863]
[1745597591351,1.24825787,606.38,604.06,5.288]
[1745597591544,0.2876996,606.2,604.06,5.5756996]
[1745597591851,1.24825787,606.38,604.06,5.5756996]
[1745597592553,1.24825787,606.21,604.06,5.5756996]
[1745597594053,0.2877222,606.2,604.06,5.5756996]
[1745597594353,0.2877222,606.2,604.06,5.288]
[1745597594652,0.2877222,606.2,604.06,5.5757222]
[1745597595756,1.24825787,606.18,604.06,5.5757222]
[1745597597255,1.24825787,606.18,604.06,5.288]
[1745597597661,0.28772577,606.17,604.06,5.57572577]
[1745597598556,1.24825787,606.15,604.06,5.57572577]
[1745597600260,1.24825787,606.15,604.06,5.288]
[1745597600562,1.24825787,606.12,604.06,5.57573171]
[1745597601661,0.28773528,606.11,604.06,5.57573171]
[1745597604061,1.24825787,606.09,604.06,5.57573171]
[1745597604664,1.24825787,606.09,604.06,0.28773171]
[1745597606261,1.24825787,606.04,603.78,1.04405207]
[1745597606465,1.24825787,606.04,603.79,0.30377514]
[1745597606664,0.28779239,606.03,603.79,0.59156753]
[1745597606886,0.28779239,606.03,603.8,0.30377514]
[1745597608060,0.28779239,606.03,603.79,0.28779239]
[1745597608264,0.28779239,606.03,603.8,0.30377479]
[1745597609767,1.24825787,605.98,603.81,1.04405207]
[1745597609963,1.24825787,605.98,603.82,0.30377479]
[1745597611268,1.24825787,605.98,603.83,1.346]
[1745597611460,0.28779239,606.03,603.84,0.30377479]
[1745597611662,0.28779239,606.03,603.84,1.48077479]
[1745597611962,0.28779239,606.03,603.85,0.30377479]
[1745597612167,0.28779239,606.03,603.85,1.85877479]
[1745597612368,1.24825787,606.21,603.86,1.69377479]
[1745597612667,0.28775432,606.02,603.87,0.30377479]
[1745597612867,1.24825787,606.21,603.87,0.30377479]
[1745597613068,1.24825787,606.21,603.86,1.39]
[1745597613869,1.24825787,606.16,603.86,1.39]
[1745597615568,0.28780667,606.15,603.86,1.39]
[1745597618673,1.24825787,605.83,603.86,1.39]
[1745597621076,0.28780667,606.15,603.86,1.39]
[1745597621470,1.24825787,606.46,603.86,1.39]
[1745597621672,0.28777097,606.14,603.86,1.39]
[1745597621874,1.24825787,606.46,603.86,1.39]
[1745597622973,1.24825787,606.43,603.86,1.39]
[1745597624577,0.28777454,606.42,603.86,1.39]
[1745597627278,1.24825787,606.44,603.86,1.39]
[1745597627579,0.28777335,606.41,603.86,1.39]
[1745597628179,1.24825787,605.97,603.87,1.511]
[1745597630682,2.12377208,606.34,603.87,1.511]
[1745597630683,1.24825787,605.9,603.87,1.511]
[1745597633684,0.28783643,605.89,603.87,1.511]
[1745597636293,1.24825787,606.22,603.87,1.511]
[1745597636595,0.28779834,605.88,603.87,1.511]
[1745597636892,1.24825787,606.17,603.88,1.414]
[1745597637692,0.2878031,606.16,603.88,1.414]
[1745597640598,1.24825787,605.97,603.88,1.414]
[1745597642695,0.28782929,605.96,603.88,1.414]
[1745597643502,1.24825787,605.91,603.88,1.414]
[1745597645699,1.24825787,605.91,603.88,1.4000091]
[1745597645999,1.24825787,605.91,603.89,1.043]
[1745597646398,0.28782929,605.96,603.89,1.043]
[1745597650200,0.28782929,605.96,603.9,1.509]
[1745597651400,1.24825787,606.03,603.9,1.509]
[1745597651600,0.28782453,605.95,603.9,1.509]
[1745597651898,1.24825787,606.03,603.9,1.509]
[1745597652096,1.24825787,606.01,603.9,1.509]
[1745597652601,0.28782453,606.0,603.9,1.509]
[1745597654301,1.24825787,606.01,603.9,1.509]
[1745597654502,1.24825787,606.01,603.9,2.857]
[1745597654703,0.28782453,605.99,603.9,2.857]
[1745597656806,1.24825787,605.89,603.9,2.857]
[1745597658805,0.28782453,605.99,603.9,2.857]
[1745597660406,1.24825787,606.17,603.9,2.857]
[1745597660707,0.28777216,605.98,603.9,2.857]
[1745597660907,1.24825787,606.17,603.9,2.857]
[1745597661207,2.12377208,607.07,603.9,2.857]
[1745597661208,1.24825787,606.11,603.9,2.857]
[1745597661709,0.28778882,606.1,603.9,2.857]
[1745597662609,0.28778882,606.1,603.9,4.373]
[1745597663314,1.24825787,606.11,603.9,4.373]
[1745597663514,1.24825787,606.16,603.9,4.373]
[1745597663710,0.28778882,606.09,603.9,4.373]
[1745597666311,1.24825787,606.16,603.9,4.373]
[1745597666623,0.28778287,606.08,603.9,4.373]
[1745597666917,1.24825787,606.16,603.9,4.373]
[1745597667110,1.24825787,606.17,603.9,4.373]
[1745597668018,0.28778168,606.16,603.9,4.373]
[1745597670120,1.24825787,605.95,603.9,4.373]
[1745597672720,0.287815,605.94,603.9,4.373]
[1745597673021,1.24825787,605.85,603.9,4.373]
[1745597675222,0.287815,605.94,603.9,4.373]
[1745597675417,1.24825787,606.05,603.9,4.373]
[1745597675619,0.28781977,605.93,603.9,4.373]
[1745597675918,1.24825787,606.05,603.9,4.373]
[1745597678123,0.60380907,612.31,603.9,4.373]
[1745597678124,1.24825787,606.0,603.9,4.373]
[1745597681127,1.24825787,605.89,603.9,4.373]
[1745597681825,0.28785071,605.88,603.9,4.373]
[1745597684323,1.24825787,605.89,603.9,4.373]
[1745597684626,0.28785071,605.87,603.9,4.373]
[1745597687326,1.24825787,605.89,603.9,4.373]
[1745597687528,1.24825787,605.99,603.9,4.373]
[1745597687828,0.28785071,605.86,603.9,4.373]
[1745597688027,1.24825787,605.99,603.9,4.373]
[1745597688729,0.28783881,605.98,603.9,4.373]
[1745597693330,1.24825787,605.99,603.9,4.373]
[1745597693631,0.28783881,605.97,603.9,4.373]
[1745597694433,0.28783881,605.97,603.79,0.28783881]
[1745597694927,1.24825787,605.58,603.79,0.28783881]
[1745597696332,1.24825787,605.58,603.62,1.04405207]
[1745597696834,0.28793526,605.57,603.63,0.28793526]
[1745597699437,1.24825787,605.81,603.64,1.324]
[1745597699633,1.24825787,605.81,603.64,2.697]
[1745597699839,0.27767462,605.56,603.64,2.697]
[1745597700040,1.24825787,605.81,603.64,2.697]
[1745597700437,1.24825787,605.81,603.65,1.369]
[1745597700742,0.2878912,605.8,603.65,1.369]
[1745597701843,1.24825787,605.79,603.65,1.369]
[1745597702340,0.28789239,605.78,603.65,1.369]
[1745597703943,0.28789239,605.78,603.66,0.3038599]
[1745597705345,1.24825787,605.79,603.66,0.3038599]
[1745597705644,0.28787215,605.77,603.66,0.3038599]
[1745597706742,0.28787215,605.77,603.65,1.65687215]
[1745597706945,0.28787215,605.77,603.66,0.3038532]
[1745597708247,0.28787215,605.77,603.65,1.65687215]
[1745597708446,1.24825787,605.94,603.66,0.30385944]
[1745597708846,0.28784595,605.76,603.66,0.30385944]
[1745597709145,1.24825787,605.94,603.66,0.30385944]
[1745597709746,0.28784595,605.93,603.66,0.30385944]
[1745597710046,1.24825787,605.87,603.66,0.30385944]
[1745597711742,0.28786143,605.86,603.66,0.30385944]
[1745597712849,0.28786143,605.86,603.65,1.65686143]
[1745597713048,0.28786143,605.86,603.66,0.30388341]
[1745597714451,0.28786143,605.86,603.65,1.65686143]
[1745597714452,1.24825787,605.8,603.65,1.65686143]
[1745597714649,1.24825787,605.8,603.66,0.3038911]
[1745597715052,0.28788405,605.79,603.66,0.3038911]
[1745597716047,0.28788405,605.79,603.67,0.30390798]
[1745597716248,0.28788405,605.79,603.66,0.30390798]
[1745597716450,0.28788405,605.79,603.67,0.30390798]
[1745597716645,0.28788405,605.79,603.66,0.30390798]
[1745597716847,0.28788405,605.79,603.67,1.148]
[1745597717051,0.28788405,605.79,603.68,0.30390798]
[1745597717351,1.24825787,605.8,603.68,0.30390798]
[1745597717651,0.28788882,605.78,603.67,1.148]
[1745597717857,0.28788882,605.78,603.68,0.30391364]
[1745597719054,0.28788882,605.78,603.68,1.57691364]
[1745597719253,0.28788882,605.78,603.69,0.30391364]
[1745597719455,1.24825787,605.49,603.69,0.30391364]
[1745597720754,0.28792454,605.48,603.69,0.30391364]
[1745597720947,0.28792454,605.48,603.68,1.273]
[1745597721151,0.28792454,605.48,603.69,0.30391977]
[1745597721656,0.28792454,605.48,603.68,1.273]
[1745597723455,1.24825787,605.5,603.68,1.273]
[1745597723655,0.28793526,605.47,603.68,1.273]
[1745597724658,0.28793526,605.47,603.67,1.148]
[1745597725359,0.28793526,605.47,603.49,0.28799364]
[1745597726458,1.24825787,605.83,603.37,1.04405207]
[1745597726758,0.28799484,605.46,603.48,0.28799484]
[1745597726959,1.24825787,605.83,603.37,1.04405207]
[1745597727157,1.24825787,605.83,603.38,0.30403795]
[1745597727758,0.28799484,605.82,603.39,0.28799484]
[1745597727958,0.28799484,605.82,603.4,0.30403795]
[1745597728258,0.28799484,605.82,603.39,0.28799484]
[1745597728451,0.28799484,605.82,603.4,0.30403928]
[1745597729758,0.28799484,605.82,603.39,0.28799484]
[1745597732360,1.24825787,605.83,603.37,1.04405207]
[1745597732755,0.28798292,605.82,603.38,0.59200565]
[1745597732958,0.28798292,605.82,603.38,0.28798292]
[1745597733860,1.24825787,605.77,603.38,0.28798292]
[1745597735364,1.24825787,605.77,603.11,1.04405207]
[1745597736367,1.24825787,606.68,603.1,1.224]
[1745597736664,0.28805443,605.76,603.12,0.28805443]
[1745597736966,1.24825787,606.68,603.12,0.28805443]
[1745597738568,0.28796862,606.67,603.12,0.28805443]
[1745597738963,1.24825787,606.1,603.12,0.28805443]
[1745597740367,1.24825787,606.1,603.13,0.30410287]
[1745597741263,2.12377208,606.53,603.13,0.30410287]
[1745597741264,1.24825787,606.32,603.13,0.30410287]
[1745597741765,0.28798769,606.31,603.14,0.30409209]
[1745597741968,0.28798769,606.31,603.13,0.30409209]
[1745597743169,0.28798769,606.31,603.12,0.28798769]
[1745597743370,0.28798769,606.31,603.13,0.30409351]
[1745597743670,1.24825787,606.16,603.13,0.30409351]
[1745597744673,0.2880151,606.15,603.12,0.2880151]
[1745597744866,0.2880151,606.15,603.13,0.30411022]
[1745597745672,0.2880151,606.15,603.14,1.23]
[1745597746775,1.24825787,606.08,603.14,1.23]
[1745597747674,0.28802821,606.07,603.14,1.23]
[1745597748573,0.28802821,606.07,603.15,0.30412116]
[1745597749179,0.28802821,606.07,603.14,1.23]
[1745597749382,1.24825787,606.06,603.16,0.30412033]
[1745597749580,1.24825787,606.06,603.17,0.30412033]
[1745597749778,1.24825787,606.06,603.18,0.30412033]
[1745597749980,1.24825787,606.06,603.15,0.30412033]
[1745597750281,1.24825787,606.06,603.16,0.30412033]
[1745597750478,1.24825787,606.06,603.17,0.30412033]
[1745597750682,0.28803774,606.05,603.14,1.51803774]
[1745597750882,0.28803774,606.05,603.15,0.30412807]
[1745597751181,0.28803774,606.05,603.14,1.51803774]
[1745597751482,0.28803774,606.05,603.15,0.30412553]
[1745597752282,0.28803774,606.05,603.14,1.51803774]
[1745597752482,1.24825787,605.61,603.14,1.51803774]
[1745597753483,1.24825787,605.61,603.14,1.23]
[1745597753684,0.28810093,605.6,603.14,1.51810093]
[1745597755186,0.28810093,605.6,603.15,1.098]
[1745597756986,0.28810093,605.6,603.16,0.30415612]
[1745597757186,0.28810093,605.6,603.15,1.098]
[1745597757688,0.28810093,605.6,603.16,0.30416572]
[1745597758187,0.28810093,605.6,603.15,1.098]
[1745597759487,1.24825787,605.69,603.15,1.098]
[1745597759687,0.28810928,605.59,603.15,1.098]
[1745597760084,1.24825787,605.69,603.15,1.098]
[1745597760488,1.24825787,605.55,603.15,1.098]
[1745597763783,1.24825787,605.49,603.15,1.098]
[1745597763987,1.24825787,605.49,603.15,2.342]
[1745597766786,0.28815222,605.48,603.15,2.342]
[1745597767390,1.24825787,605.45,603.15,2.342]
[1745597768690,0.28815461,605.44,603.15,2.342]
[1745597768989,0.28815461,605.44,603.15,3.761]
[1745597771390,1.24825787,605.76,603.15,3.761]
[1745597771691,0.2881057,605.43,603.15,3.761]
[1745597771991,1.24825787,605.76,603.15,3.761]
[1745597772792,0.2881057,605.75,603.15,3.761]
[1745597778497,1.24825787,605.46,603.15,3.761]
[1745597780291,1.24825787,605.46,603.12,0.2881057]
[1745597780496,1.24825787,605.46,602.81,1.04405207]
[1745597780695,0.28815342,605.45,603.11,0.28815342]
[1745597781092,1.24825787,605.28,602.86,1.04405207]
[1745597781397,1.24825787,605.28,602.87,0.30422267]
[1745597782293,1.24825787,605.28,602.88,0.28821427]
[1745597782492,1.24825787,605.28,602.89,0.30422267]
[1745597782692,1.24825787,605.28,602.89,1.88822267]
[1745597782900,1.24825787,605.28,602.9,0.30424387]
[1745597783901,1.24825787,605.28,602.89,1.584]
[1745597784101,1.24825787,605.28,602.9,0.30425055]
[1745597784901,1.24825787,605.28,602.9,1.75325055]
[1745597785103,1.24825787,605.28,602.91,0.30425055]
[1745597785606,1.24825787,605.28,602.9,2.518]
[1745597786003,1.24825787,605.28,602.9,3.58]
[1745597786698,1.24825787,605.29,602.9,3.58]
[1745597789102,0.28825008,605.28,602.9,3.58]
[1745597794713,1.53650795,605.28,602.9,3.58]
[1745597796914,0.28825008,605.28,602.9,3.58]
[1745597807526,1.24825787,605.38,602.9,3.58]
[1745597808925,0.28824531,605.37,602.9,3.58]
[1745597811330,1.24825787,605.33,602.9,3.58]
[1745597813735,0.28825128,605.32,602.9,3.58]
[1745597814937,1.24825787,605.28,602.9,3.58]
[1745597816741,0.28828351,605.27,602.9,3.58]
[1745597819444,1.24825787,605.52,602.9,3.58]
[1745597819745,2.12377208,605.03,602.9,3.58]
[1745597819944,1.24825787,604.88,602.9,3.58]
[1745597822246,0.28834084,604.87,602.9,3.58]
[1745597828350,1.24825787,605.23,602.9,3.58]
[1745597828746,0.28830142,604.86,602.9,3.58]
[1745597828944,1.24825787,605.23,602.9,3.58]
[1745597829749,0.28830142,605.22,602.9,3.58]
[1745597829951,1.24825787,605.13,602.9,3.58]
[1745597830251,1.24825787,605.13,602.9,4.63]
[1745597831753,0.28831337,605.12,602.9,4.63]
[1745597832554,1.53657124,605.12,602.9,4.63]
[1745597834454,1.24825787,605.12,602.9,4.63]
[1745597834855,0.28831456,605.11,602.9,4.63]
[1745597835755,1.53657243,605.11,602.9,4.63]
[1745597837455,1.24825787,605.11,602.9,4.63]
[1745597837755,0.28831576,605.1,602.9,4.63]
[1745597838657,1.24825787,605.07,602.9,4.63]
[1745597840859,0.28832053,605.06,602.9,4.63]
[1745597843554,1.24825787,605.07,602.9,4.63]
[1745597843758,0.28832053,605.05,602.9,4.63]
[1745597844361,1.24825787,604.92,602.9,4.63]
[1745597848263,1.5365784,605.05,602.9,4.63]
[1745597849461,1.24825787,605.05,602.9,4.63]
[1745597849763,0.28833726,605.04,602.9,4.63]
[1745597850464,1.24825787,604.93,602.9,4.63]
[1745597852766,0.28838026,604.92,602.9,4.63]
[1745597858571,1.24825787,605.04,602.9,4.63]
[1745597858872,0.28836712,604.91,602.9,4.63]
[1745597859072,1.24825787,605.04,602.9,4.63]
[1745597859972,0.28836712,605.03,602.9,4.63]
[1745597862070,2.12377208,604.99,602.9,4.63]
[1745597862270,1.24825787,604.82,602.9,4.63]
[1745597865874,0.28836712,605.03,602.9,4.63]
[1745597865875,1.24825787,604.79,602.9,4.63]
[1745597867776,0.28840177,604.78,602.9,4.63]
[1745597868377,1.24825787,604.59,602.9,4.63]
[1745597870877,1.24825787,604.62,602.9,4.63]
[1745597871779,0.28842209,604.61,602.9,4.63]
[1745597876480,1.24825787,604.77,602.9,4.63]
[1745597876781,0.28841851,604.6,602.9,4.63]
[1745597876982,1.24825787,604.77,602.9,4.63]
[1745597877276,1.24825787,604.71,602.9,4.63]
[1745597877780,0.28842568,604.7,602.9,4.63]
[1745597879282,1.24825787,604.65,602.9,4.63]
[1745597879777,0.28843285,604.64,602.9,4.63]
[1745597882580,1.24825787,604.62,602.9,4.63]
[1745597883686,0.28845556,604.61,602.9,4.63]
[1745597884987,1.24825787,604.38,602.9,4.63]
[1745597888194,0.28845556,604.61,602.9,4.63]
[1745597888694,1.24825787,604.72,602.9,4.63]
[1745597888889,0.28842926,604.6,602.9,4.63]
[1745597889288,1.24825787,604.72,602.9,4.63]
[1745597890894,1.24825787,604.7,602.9,4.63]
[1745597891294,0.28843165,604.69,602.9,4.63]
[1745597893598,1.24825787,604.48,602.9,4.63]
[1745597894797,0.28842926,604.47,602.9,4.63]
[1745597897504,1.24825787,605.08,602.9,4.63]
[1745597897898,0.28834562,604.46,602.9,4.63]
[1745597898204,1.24825787,605.08,602.9,4.63]
[1745597898899,1.24825787,604.65,602.9,4.63]
[1745597901702,2.12377208,605.73,602.9,4.63]
[1745597901703,1.24825787,604.66,602.9,4.63]
[1745597903704,0.2883958,604.65,602.9,4.63]
[1745597912412,1.24825787,604.84,602.9,4.63]
[1745597912814,0.28834323,604.64,602.9,4.63]
[1745597913006,1.24825787,604.84,602.9,4.63]
[1745597915315,0.28836473,604.83,602.9,4.63]
[1745597915713,1.24825787,604.76,602.9,4.63]
[1745597918814,0.28840775,604.75,602.9,4.63]
[1745597919615,1.24825787,604.73,602.9,4.63]
[1745597921816,0.2884209,604.72,602.9,4.63]
[1745597922818,1.24825787,604.65,602.9,4.63]
[1745597924817,0.28842568,604.64,602.9,4.63]
[1745597925519,1.24825787,604.56,602.9,4.63]
[1745597927920,0.28842568,604.64,602.9,4.63]
[1745597933515,1.24825787,604.77,602.9,4.63]
[1745597933822,0.28833726,604.63,602.9,4.63]
[1745597934023,1.24825787,604.77,602.9,4.63]
[1745597936324,0.28833726,604.76,602.9,4.63]
[1745597939527,1.24825787,605.0,602.9,4.63]
[1745597939822,0.28832173,604.75,602.9,4.63]
[1745597940224,1.24825787,605.0,602.9,4.63]
[1745597940530,1.24825787,604.96,602.9,4.63]
[1745597942632,1.24825787,605.01,602.9,4.63]
[1745597945337,1.24825787,605.36,602.9,4.63]
[1745597947744,1.24825787,605.08,602.9,4.63]
[1745597951239,1.24825787,604.89,602.9,4.63]
[1745597954145,1.24825787,604.76,602.9,4.63]
[1745597954851,0.28838146,604.75,602.9,4.63]
[1745597958841,1.24825787,604.68,602.9,4.63]
[1745597960845,0.28841014,604.67,602.9,4.63]
[1745597961046,1.24825787,604.66,602.9,4.63]
[1745597963951,0.28841014,604.67,602.9,4.63]
[1745597965248,0.28841014,604.67,602.9,2.112]
[1745597965450,0.28841014,604.67,602.56,0.28841014]
[1745597965648,0.28841014,604.67,602.57,0.30440804]
[1745597965848,0.28841014,604.67,602.56,0.28841014]
[1745597966049,0.28841014,604.67,602.57,0.30439446]
[1745597966552,1.24825787,604.77,602.57,0.30439446]
[1745597966744,1.24825787,604.77,602.53,0.30439446]
[1745597966949,0.28839221,604.66,602.56,0.28839221]
[1745597967150,1.24825787,604.77,602.57,0.30439446]
[1745597967648,1.24825787,604.77,602.58,0.30440125]
[1745597967846,1.24825787,604.77,602.57,0.30440125]
[1745597968050,0.28839221,604.76,602.57,0.30440125]
[1745597969651,1.24825787,604.86,602.58,1.606]
[1745597969852,0.28839221,604.75,602.59,0.30440125]
[1745597970050,1.24825787,604.86,602.59,0.30440125]
[1745597970251,1.24825787,604.86,602.6,1.469]
[1745597970451,1.24825787,604.86,602.61,0.30440125]
[1745597970950,0.28837668,604.85,602.62,2.622]
[1745597971153,0.28837668,604.85,602.63,0.30440125]
[1745597972157,0.28837668,604.85,602.62,2.622]
[1745597972354,0.28837668,604.85,602.63,0.30440383]
[1745597975459,1.24825787,604.91,602.63,0.30440383]
[1745597975759,0.28837548,604.84,602.63,0.30440383]
[1745597976859,0.28837548,604.84,602.62,2.622]
[1745597977055,0.28837548,604.84,602.63,0.30440324]
[1745597978360,0.28837548,604.84,602.62,2.622]
[1745597978561,1.24825787,604.89,602.63,0.30440515]
[1745597978758,1.24825787,604.88,602.63,0.30440515]
[1745597978959,0.28837787,604.83,602.63,0.30440515]
[1745597979161,1.24825787,604.88,602.63,0.30440515]
[1745597979955,1.24825787,604.88,602.62,2.622]
[1745597980160,1.24825787,604.88,602.63,0.30440795]
[1745597981057,1.24825787,604.81,602.63,0.30440795]
[1745597984961,1.24825787,604.78,602.63,0.30440795]
[1745597986264,1.24825787,604.78,602.62,1.82539221]
[1745597986464,1.24825787,604.78,602.64,1.307]
[1745597986664,1.24825787,604.65,602.64,1.307]
[1745597987260,1.24825787,604.65,602.65,0.30441009]
[1745597987563,1.24825787,604.65,602.64,1.307]
[1745597987861,0.28841851,604.64,602.64,1.307]
[1745597993172,0.28841851,604.64,602.65,0.30441925]
[1745597993570,1.24825787,604.73,602.65,0.30441925]
[1745597993866,0.28839938,604.63,602.65,0.30441925]
[1745597994171,1.24825787,604.73,602.65,0.30441925]
[1745597994873,0.2883946,604.72,602.65,0.30441925]
[1745597995368,1.24825787,604.6,602.65,0.30441925]
[1745597995775,1.24825787,604.6,602.65,1.262]
[1745597995973,1.24825787,604.6,602.66,0.30440525]
[1745597996870,0.28840894,604.59,602.66,0.30440525]
[1745597997275,0.28840894,604.59,602.65,1.55040894]
[1745597997469,1.24825787,604.57,602.68,1.04405207]
[1745597997668,1.24825787,604.57,602.69,0.30440856]
[1745597998776,1.24825787,604.57,602.68,1.04405207]
[1745597998975,1.24825787,604.57,602.69,0.3044054]
[1745597999874,0.28840416,604.56,602.69,0.3044054]
[1745598000076,1.24825787,604.53,602.71,1.04405207]
[1745598000676,1.24825787,604.53,602.72,0.30441331]
[1745598000871,1.24825787,604.53,602.71,1.04405207]
[1745598001072,1.24825787,604.53,602.73,1.038]
[1745598002378,0.28841253,604.52,602.73,1.038]
[1745598008585,1.24825787,604.7,602.73,1.038]
[1745598008782,0.28838026,604.51,602.73,1.038]
[1745598009084,1.24825787,604.7,602.74,0.30437261]
[1745598009286,1.24825787,604.7,602.75,0.30435489]
[1745598009579,2.12377208,605.42,602.73,1.038]
[1745598009580,1.24825787,604.74,602.76,0.30435489]
[1745598009780,0.28835637,604.69,602.77,0.30435489]
[1745598009982,0.28835637,604.69,602.78,0.30435489]
[1745598010183,0.28835637,604.69,602.79,0.30435489]
[1745598010386,0.28835637,604.69,602.74,0.30435489]
[1745598010688,0.28835637,604.69,602.73,1.038]
[1745598010888,0.28835637,604.69,602.74,0.3043362]
[1745598012389,0.28835637,604.69,602.74,1.34838827]
[1745598012589,0.28835637,604.69,602.75,0.3043362]
[1745598013685,0.28835637,604.69,602.74,1.04405207]
[1745598013889,0.28835637,604.69,602.75,0.30433538]
[1745598014492,1.24825787,604.86,602.75,0.30433538]
[1745598014793,0.2883265,604.68,602.75,0.30433538]
[1745598014994,0.2883265,604.68,602.76,0.30433538]
[1745598015289,1.24825787,605.06,602.73,1.038]
[1745598015492,1.24825787,605.06,602.74,0.30431754]
[1745598015894,0.28829904,605.05,602.74,0.30431754]
[1745598016893,0.28829904,605.05,602.75,0.30431017]
[1745598017092,0.28829904,605.05,602.74,0.30431017]
[1745598017291,0.28829904,605.05,602.75,0.30431017]
[1745598017494,0.28829904,605.05,602.74,0.30431017]
[1745598017689,0.28829904,605.05,602.75,0.30431017]
[1745598017893,0.28829904,605.05,602.74,0.30431017]
[1745598018088,0.28829904,605.05,602.75,0.30431017]
[1745598018293,0.28829904,605.05,602.76,0.30431017]
[1745598018491,0.28829904,605.05,602.73,1.038]
[1745598018492,0.28829904,605.05,602.77,0.30431017]
[1745598018688,0.28829904,605.05,602.78,0.30431017]
[1745598018892,0.28829904,605.05,602.74,0.30431017]
[1745598019093,0.28829904,605.05,602.75,0.30431017]
[1745598019289,0.28829904,605.05,602.74,0.30431017]
[1745598019491,0.28829904,605.05,602.75,0.30431017]
[1745598019690,0.28829904,605.05,602.73,1.038]
[1745598019691,0.28829904,605.05,602.76,0.30431017]
[1745598020090,0.28829904,605.05,602.77,0.30431017]
[1745598020296,0.28829904,605.05,602.74,0.30431017]
[1745598020490,0.28829904,605.05,602.75,0.30431017]
[1745598020690,0.28829904,605.05,602.75,1.04405207]
[1745598020995,0.28829904,605.05,602.76,0.30431017]
[1745598021196,0.28829904,605.05,602.75,1.04405207]
[1745598021399,0.28829904,605.05,602.76,0.30428263]
[1745598021597,0.28829904,605.05,602.77,0.30428262]
[1745598021893,0.28829904,605.05,602.78,0.30428262]
[1745598022097,0.28829904,605.05,602.76,0.30428262]
[1745598022297,0.28829904,605.05,602.77,0.30428262]
[1745598022497,0.28829904,605.05,602.76,0.30428262]
[1745598023599,1.24825787,605.15,602.76,0.30428262]
[1745598023797,1.24825787,605.08,602.76,0.30428262]
[1745598023996,0.28827396,605.04,602.74,0.59255658]
[1745598024198,0.28827396,605.04,602.75,0.30428262]
[1745598024699,0.28827396,605.04,602.76,0.30428251]
[1745598024900,0.28827396,605.04,602.75,0.30428251]
[1745598026500,1.24825787,605.08,602.75,0.30428251]
[1745598026702,1.24825787,605.26,602.74,0.30428251]
[1745598026900,1.24825787,605.26,602.75,0.30428251]
[1745598027703,1.24825787,605.26,602.74,0.28827396]
[1745598027900,0.28829306,605.25,602.74,0.28827396]
[1745598028303,0.28829306,605.25,602.75,0.30434956]
[1745598028704,0.28829306,605.25,602.74,0.28827396]
[1745598029207,0.28829306,605.25,602.75,0.30435485]
[1745598029804,1.24825787,605.26,602.73,1.038]
[1745598029805,0.28829545,605.24,602.76,0.30435485]
[1745598030005,0.28829545,605.24,602.75,0.30435485]
[1745598030206,0.28829545,605.24,602.76,0.30435485]